fUSD/lending_fUSD_20250507
["ID","MTS","AMOUNT","RATE_DAILY","PERIOD"]
[360183005,1746605986706,-1110.36307668,0.0001952,2]
[360183006,1746605986740,-500.0,0.00019523,2]
[360183007,1746605986764,-175.91741644,0.00019523,2]
[360183008,1746605986797,-500.0,0.00019523,2]
[360183009,1746605986828,-276.98503818,0.00019523,2]
[360183010,1746605986854,-5482.69591501,0.00019523,2]
[360183011,1746605986880,-450.0,0.00019524,2]
[360183012,1746605986905,-585.12,0.00019524,2]
[360183013,1746605986930,-544.62374443,0.00019524,2]
[360183014,1746605986955,-450.0,0.00019524,2]
[360183015,1746605986979,-453.41588437,0.00019524,2]
[360183016,1746605987004,-450.0,0.00019524,2]
[360183017,1746605987028,-450.0,0.00019524,2]
[360183018,1746605987053,-450.0,0.00019524,2]
[360183019,1746605987077,-450.0,0.00019524,2]
[360183020,1746605987101,-450.0,0.00019524,2]
[360183021,1746605987126,-450.0,0.00019524,2]
[360183022,1746605987151,-450.0,0.00019524,2]
[360183023,1746605987177,-450.0,0.00019524,2]
[360183024,1746605987202,-450.0,0.00019524,2]
[360183025,1746605987227,-450.0,0.00019524,2]
[360183026,1746605987252,-450.0,0.00019524,2]
[360183027,1746605987278,-450.0,0.00019524,2]
[360183028,1746605987302,-450.0,0.00019524,2]
[360183029,1746605987328,-450.0,0.00019524,2]
[360183030,1746605987353,-450.0,0.00019524,2]
[360183031,1746605987378,-450.0,0.00019524,2]
[360183032,1746605987403,-450.0,0.00019524,2]
[360183033,1746605987428,-450.0,0.00019524,2]
[360183034,1746605987452,-300.0,0.00019524,2]
[360183035,1746605987478,-450.0,0.00019524,2]
[360183036,1746605987502,-521.04121212,0.00019524,2]
[360183037,1746605987526,-450.0,0.00019524,2]
[360183038,1746605987550,-283.58262709,0.00019524,2]
[360183039,1746605987576,-450.0,0.00019524,2]
[360183040,1746605987601,-450.0,0.00019524,2]
[360183041,1746605987626,-450.0,0.00019524,2]
[360183042,1746605987650,-450.0,0.00019524,2]
[360183043,1746605987678,-459.49309321,0.00019524,2]
[360183044,1746605987703,-450.0,0.00019524,2]
[360183045,1746605987728,-450.0,0.00019524,2]
[360183046,1746605987754,-450.0,0.00019524,2]
[360183047,1746605987778,-450.0,0.00019524,2]
[360183048,1746605987802,-450.0,0.00019524,2]
[360183049,1746605987828,-450.0,0.00019524,2]
[360183050,1746605987853,-450.0,0.00019524,2]
[360183051,1746605987878,-450.0,0.00019524,2]
[360183052,1746605987902,-450.0,0.00019524,2]
[360183053,1746605987927,-450.0,0.00019524,2]
[360183054,1746605987951,-450.0,0.00019524,2]
[360183055,1746605987976,-490.74,0.00019524,2]
[360183056,1746605988001,-450.0,0.00019524,2]
[360183057,1746605988025,-450.0,0.00019524,2]
[360183058,1746605988051,-482.9661942,0.00019524,2]
[360183059,1746605988077,-450.0,0.00019524,2]
[360183060,1746605988377,-450.0,0.00019524,2]
[360183061,1746605988404,-450.0,0.00019524,2]
[360183062,1746605988430,-450.0,0.00019524,2]
[360183063,1746605988455,-564.49926726,0.00019524,2]
[360183064,1746605988483,-450.0,0.00019524,2]
[360183065,1746605988509,-450.0,0.00019524,2]
[360183066,1746605988533,-520.57478508,0.00019524,2]
[360183067,1746605988559,-450.0,0.00019524,2]
[360183068,1746605988586,-464.52953538,0.00019524,2]
[360183069,1746605988615,-450.0,0.00019524,2]
[360183070,1746605988642,-450.0,0.00019524,2]
[360183071,1746605988672,-518.36419373,0.00019524,2]
[360183072,1746605988698,-452.15990577,0.00019524,2]
[360183073,1746605988723,-450.0,0.00019524,2]
[360183074,1746605988749,-442.98594494,0.00019524,2]
[360183075,1746605988774,-165.41519246,0.00019524,2]
[360183076,1746605988799,-450.0,0.00019524,2]
[360183077,1746605988825,-555.94,0.00019524,2]
[360183078,1746605988849,-530.72299791,0.00019524,2]
[360183079,1746605988874,-500.0,0.00019524,2]
[360183080,1746605988899,-500.0,0.00019524,2]
[360183081,1746605988924,-550.03987052,0.00019524,2]
[360183082,1746605988948,-505.01937858,0.00019524,2]
[360183083,1746605988973,-452.44844443,0.00019524,2]
[360183084,1746605989001,-548.53300129,0.00019524,2]
[360183085,1746605989027,-450.0,0.00019524,2]
[360183086,1746605989052,-591.28464997,0.00019524,2]
[360183087,1746605989078,-450.0,0.00019524,2]
[360183088,1746605989103,-467.78856313,0.00019524,2]
[360183089,1746605989129,-567.69942452,0.00019524,2]
[360183090,1746605989155,-591.46472726,0.00019524,2]
[360183091,1746605989180,-451.55866563,0.00019524,2]
[360183092,1746605989206,-756.59,0.00019524,2]
[360183093,1746605989231,-471.01,0.00019524,2]
[360183094,1746605989257,-477.63866547,0.00019524,2]
[360183095,1746605989283,-450.0,0.00019524,2]
[360183096,1746605989308,-584.1218117,0.00019524,2]
[360183097,1746605989336,-474.28887172,0.00019524,2]
[360183098,1746605989362,-465.60509738,0.00019524,2]
[360183099,1746605989389,-471.10899562,0.00019524,2]
[360183100,1746605989416,-450.0,0.00019524,2]
[360183101,1746605989442,-466.9503393,0.00019524,2]
[360183102,1746605989470,-451.38649467,0.00019524,2]
[360183103,1746605989495,-450.0,0.00019524,2]
[360183104,1746605989522,-267.1025286,0.00019524,2]
[360183105,1746605989547,-499.68890296,0.00019524,2]
[360183106,1746605989574,-450.0,0.00019524,2]
[360183107,1746605989598,-450.0,0.00019524,2]
[360183108,1746605989623,-236.0,0.00019524,2]
[360183109,1746605989648,-450.0,0.00019524,2]
[360183110,1746605989676,-467.54186794,0.00019524,2]
[360183111,1746605989700,-461.18788857,0.00019524,2]
[360183112,1746605989725,-517.49954535,0.00019524,2]
[360183113,1746605989754,-450.0,0.00019524,2]
[360183114,1746605989778,-450.0,0.00019524,2]
[360183115,1746605989802,-550.60856499,0.00019524,2]
[360183116,1746605989828,-567.58,0.00019524,2]
[360183117,1746605989852,-463.41376667,0.00019524,2]
[360183118,1746605989877,-482.56745021,0.00019524,2]
[360183119,1746605989904,-474.96530787,0.00019524,2]
[360183120,1746605989929,-183.76879224,0.00019524,2]
[360183121,1746605989953,-456.00849423,0.00019524,2]
[360183122,1746605989978,-475.41225087,0.00019524,2]
[360183123,1746605990004,-450.0,0.00019524,2]
[360183124,1746605990030,-450.0,0.00019524,2]
[360183125,1746605990055,-471.68863699,0.00019524,2]
[360183126,1746605990081,-748.06,0.00019524,2]
[360183127,1746605990107,-450.0,0.00019524,2]
[360183128,1746605990135,-450.0,0.00019524,2]
[360183129,1746605990160,-461.06911883,0.00019524,2]
[360183130,1746605990183,-451.76139259,0.00019524,2]
[360183131,1746605990208,-465.67968816,0.00019524,2]
[360183132,1746605990232,-555.26455788,0.00019524,2]
[360183133,1746605990258,-450.0,0.00019524,2]
[360183134,1746605990282,-7918.38144822,0.00019524,2]
[360183135,1746606011098,343.22033976,0.00019425,2]
[360183136,1746606016870,343.22033972,0.00019439,2]
[360183137,1746606021273,343.22033972,0.00019452,2]
[360183138,1746606023102,150.0,0.00018986,7]
[360183139,1746606026099,343.22033972,0.00019466,2]
[360183140,1746606031108,343.22033972,0.00019479,2]
[360183141,1746606036108,343.22033972,0.00019493,2]
[360183142,1746606049625,76084.10218217,0.0001948,2]
[360183143,1746606097990,153.0,0.0003,30]
[360183144,1746606114315,500.0,0.00029589,30]
[360183145,1746606114652,400.0,0.00029863,30]
[360183146,1746606151356,1000.0,0.00018603,2]
[360183147,1746606168803,365.53,0.00016684,2]
[360183148,1746606169067,365.53,0.00018948,2]
[360183149,1746606194028,169.38928199,0.00019424,2]
[360183150,1746606228760,166.33896148,0.00019494,2]
[360183151,1746606229416,153.79359473,0.00019425,2]
[360183164,1746606348257,153.27154348,0.0001763,2]
[360183165,1746606359221,500.0,0.00029589,30]
[360183166,1746606359460,500.0,0.00029863,30]
[360183169,1746606414246,169.38928199,0.00019424,2]
[360183172,1746606472419,6023.66,0.00018598,2]
[360183251,1746606501718,362.21652807,0.00019424,2]
[360183252,1746606506662,362.21652804,0.00019435,2]
[360183253,1746606511609,362.21652804,0.00019446,2]
[360183254,1746606516624,362.21652804,0.00019457,2]
[360183255,1746606521628,362.21652804,0.00019468,2]
[360183256,1746606526668,362.21652804,0.00019478,2]
[360183257,1746606531617,362.21652804,0.00019489,2]
[360183259,1746606537262,-240.058576,0.000195,2]
[360183264,1746606543003,-122.15795204,0.000195,2]
[360183265,1746606560851,153.79359473,0.00019424,2]
[360183268,1746606583571,250.0,0.00017,2]
[360183269,1746606584654,300.0,0.00019,2]
[360183275,1746606632080,-250.0,0.00019511,2]
[360183276,1746606632090,-362.21652804,0.00019511,2]
[360183281,1746606632332,-207.4,0.00019512,2]
[360183282,1746606632343,-154.24,0.00019514,2]
[360183284,1746606632352,-307.3762864,0.00019517,2]
[360183285,1746606632361,-362.21652804,0.00019522,2]
[360183286,1746606632371,-1200.0,0.00019522,2]
[360183287,1746606632380,-300.0,0.00019522,2]
[360183288,1746606632389,-371.42149829,0.00019523,2]
[360183289,1746606632398,-562.89804058,0.00019523,2]
[360183290,1746606632407,-68.17986067,0.00019523,2]
[360183291,1746606632427,-494.71817991,0.00019523,2]
[360183292,1746606632436,-562.89804058,0.00019523,2]
[360183293,1746606632445,-562.89804058,0.00019523,2]
[360183294,1746606632454,-562.89804058,0.00019523,2]
[360183295,1746606632463,-562.89804058,0.00019523,2]
[360183296,1746606632473,-562.89804058,0.00019523,2]
[360183297,1746606632482,-562.89804058,0.00019523,2]
[360183298,1746606632491,-562.89804058,0.00019523,2]
[360183299,1746606632501,-562.89804058,0.00019523,2]
[360183300,1746606632510,-562.89804058,0.00019523,2]
[360183301,1746606632519,-562.89804058,0.00019523,2]
[360183302,1746606632528,-562.89804058,0.00019523,2]
[360183303,1746606632537,-562.89804058,0.00019523,2]
[360183304,1746606632547,-339.02315342,0.00019523,2]
[360183305,1746606632559,-223.87488716,0.00019523,2]
[360183306,1746606632569,-337.61192025,0.00019523,2]
[360183311,1746606637974,-225.28612033,0.00019523,2]
[360183312,1746606637983,-562.89804058,0.00019523,2]
[360183313,1746606637992,-562.89804058,0.00019523,2]
[360183314,1746606638002,-562.89804058,0.00019523,2]
[360183315,1746606638011,-415.46232505,0.00019523,2]
[360183316,1746606638022,-147.43571553,0.00019523,2]
[360183317,1746606638031,-562.89804058,0.00019523,2]
[360183318,1746606638040,-562.89804058,0.00019523,2]
[360183319,1746606638049,-562.89804058,0.00019523,2]
[360183320,1746606638058,-562.89804058,0.00019523,2]
[360183321,1746606638067,-562.89804058,0.00019523,2]
[360183322,1746606638077,-562.89804058,0.00019523,2]
[360183323,1746606638086,-562.89804058,0.00019523,2]
[360183324,1746606638095,-562.89804058,0.00019523,2]
[360183325,1746606638104,-562.89804058,0.00019523,2]
[360183326,1746606638113,-68.54286075,0.00019523,2]
[360183327,1746606638139,-494.35517983,0.00019523,2]
[360183328,1746606638148,-562.89804058,0.00019523,2]
[360183329,1746606638157,-562.89804058,0.00019523,2]
[360183330,1746606638168,-562.89804058,0.00019523,2]
[360183331,1746606638177,-562.89804058,0.00019523,2]
[360183332,1746606638186,-562.89804058,0.00019523,2]
[360183333,1746606638195,-562.89804058,0.00019523,2]
[360183334,1746606638204,-562.89804058,0.00019523,2]
[360183335,1746606638213,-562.89804058,0.00019523,2]
[360183336,1746606638222,-562.89804058,0.00019523,2]
[360183337,1746606638233,-562.89804058,0.00019523,2]
[360183338,1746606638245,-562.89804058,0.00019523,2]
[360183339,1746606638256,-562.89804058,0.00019523,2]
[360183340,1746606638266,-562.89804058,0.00019523,2]
[360183341,1746606638275,-562.89804058,0.00019523,2]
[360183342,1746606638284,-562.89804058,0.00019523,2]
[360183343,1746606638293,-562.89804058,0.00019523,2]
[360183345,1746606638306,-562.89804058,0.00019523,2]
[360183346,1746606638316,-562.89804058,0.00019523,2]
[360183347,1746606638324,-562.89804058,0.00019523,2]
[360183348,1746606638333,-562.89804058,0.00019523,2]
[360183349,1746606638342,-562.89804058,0.00019523,2]
[360183350,1746606638352,-562.89804058,0.00019523,2]
[360183351,1746606638361,-562.89804058,0.00019523,2]
[360183352,1746606638370,-562.89804058,0.00019523,2]
[360183353,1746606638379,-562.89804058,0.00019523,2]
[360183354,1746606638389,-562.89804058,0.00019523,2]
[360183355,1746606638398,-562.89804058,0.00019523,2]
[360183357,1746606638408,-562.89804058,0.00019523,2]
[360183358,1746606638417,-562.89804058,0.00019523,2]
[360183359,1746606638427,-562.89804058,0.00019523,2]
[360183360,1746606638437,-1428.83573584,0.00019523,2]
[360183361,1746606638446,-1428.83573584,0.00019523,2]
[360183362,1746606638456,-1428.83573584,0.00019523,2]
[360183363,1746606638465,-1428.83573584,0.00019523,2]
[360183364,1746606638474,-1428.83573584,0.00019523,2]
[360183365,1746606638483,-1428.83573584,0.00019523,2]
[360183366,1746606638492,-1428.83573584,0.00019523,2]
[360183368,1746606638502,-1428.83573584,0.00019523,2]
[360183370,1746606638511,-1428.83573584,0.00019523,2]
[360183371,1746606638520,-1428.83573584,0.00019523,2]
[360183372,1746606638529,-1428.83573584,0.00019523,2]
[360183373,1746606638538,-1428.83573584,0.00019523,2]
[360183374,1746606638547,-1428.83573584,0.00019523,2]
[360183375,1746606638556,-1428.83573584,0.00019523,2]
[360183376,1746606638565,-1428.83573584,0.00019523,2]
[360183377,1746606638575,-1428.83573584,0.00019523,2]
[360183378,1746606638584,-1428.83573584,0.00019523,2]
[360183379,1746606638593,-1428.83573584,0.00019523,2]
[360183380,1746606638604,-1428.83573584,0.00019523,2]
[360183381,1746606638613,-1428.83573584,0.00019523,2]
[360183382,1746606638623,-1428.83573584,0.00019523,2]
[360183383,1746606638632,-1428.83573584,0.00019523,2]
[360183384,1746606638642,-1428.83573584,0.00019523,2]
[360183385,1746606638651,-1428.83573584,0.00019523,2]
[360183386,1746606638660,-1428.83573584,0.00019523,2]
[360183387,1746606638670,-1428.83573584,0.00019523,2]
[360183388,1746606638679,-1428.83573584,0.00019523,2]
[360183389,1746606638688,-1428.83573584,0.00019523,2]
[360183390,1746606638698,-1428.83573584,0.00019523,2]
[360183391,1746606638708,-1428.8357358,0.00019523,2]
[360183392,1746606638717,-450.0,0.00019523,2]
[360183393,1746606638726,-450.0,0.00019523,2]
[360183394,1746606638736,-470.0,0.00019523,2]
[360183395,1746606638745,-522.49193498,0.00019523,2]
[360183396,1746606638755,-450.0,0.00019523,2]
[360183397,1746606638765,-470.943863,0.00019523,2]
[360183398,1746606638774,-506.84825262,0.00019523,2]
[360183399,1746606638783,-513.50320962,0.00019523,2]
[360183400,1746606638792,-470.0,0.00019523,2]
[360183401,1746606638802,-428.37457708,0.00019523,2]
[360183402,1746606638811,-397.85162297,0.00019523,2]
[360183403,1746606638821,-450.0,0.00019523,2]
[360183404,1746606638830,-471.0796644,0.00019523,2]
[360183405,1746606638840,-450.0,0.00019523,2]
[360183406,1746606638849,-450.0,0.00019523,2]
[360183407,1746606638859,-436.77328701,0.00019523,2]
[360183408,1746606638868,-470.0,0.00019523,2]
[360183409,1746606638878,-470.0,0.00019523,2]
[360183410,1746606638891,-470.0,0.00019523,2]
[360183411,1746606638900,-450.0,0.00019523,2]
[360183412,1746606638910,-174.264356,0.00019523,2]
[360183413,1746606638919,-331.77433544,0.00019523,2]
[360183414,1746606638929,-2238.55265,0.00019523,2]
[360183415,1746606638939,-930.827771,0.00019523,2]
[360183416,1746606638948,-1607.57,0.00019523,2]
[360183417,1746606638958,-450.0,0.00019523,2]
[360183418,1746606638969,-450.0,0.00019523,2]
[360183419,1746606638978,-450.0,0.00019523,2]
[360183420,1746606638987,-450.0,0.00019523,2]
[360183421,1746606638996,-700.99,0.00019523,2]
[360183422,1746606639005,-490.0,0.00019523,2]
[360183423,1746606639014,-515.84712983,0.00019523,2]
[360183424,1746606639023,-499.40560064,0.00019523,2]
[360183425,1746606639033,-450.0,0.00019523,2]
[360183426,1746606639042,-450.0,0.00019523,2]
[360183427,1746606639052,-450.0,0.00019523,2]
[360183428,1746606639061,-450.0,0.00019523,2]
[360183429,1746606639070,-744.49,0.00019523,2]
[360183430,1746606639079,-450.0,0.00019523,2]
[360183431,1746606639088,-450.0,0.00019523,2]
[360183432,1746606639098,-517.36337758,0.00019523,2]
[360183433,1746606639107,-450.0,0.00019523,2]
[360183434,1746606639116,-450.0,0.00019523,2]
[360183435,1746606639125,-450.0,0.00019523,2]
[360183436,1746606639134,-508.27750407,0.00019523,2]
[360183437,1746606639143,-510.61480129,0.00019523,2]
[360183438,1746606639153,-485.9,0.00019523,2]
[360183439,1746606639162,-450.0,0.00019523,2]
[360183440,1746606639171,-450.0,0.00019523,2]
[360183441,1746606639180,-450.0,0.00019523,2]
[360183442,1746606639189,-450.0,0.00019523,2]
[360183443,1746606639198,-450.0,0.00019523,2]
[360183444,1746606639207,-955.77,0.00019523,2]
[360183445,1746606639216,-450.0,0.00019523,2]
[360183446,1746606639224,-479.32246364,0.00019523,2]
[360183447,1746606639234,-450.0,0.00019523,2]
[360183448,1746606639243,-450.0,0.00019523,2]
[360183449,1746606639254,-456.96,0.00019523,2]
[360183450,1746606639264,-450.0,0.00019523,2]
[360183451,1746606639273,-1859.96,0.00019523,2]
[360183452,1746606639282,-450.0,0.00019523,2]
[360183453,1746606639291,-924.45,0.00019523,2]
[360183454,1746606639300,-490.67,0.00019523,2]
[360183455,1746606639309,-450.0,0.00019523,2]
[360183456,1746606639318,-450.0,0.00019523,2]
[360183457,1746606639327,-450.0,0.00019523,2]
[360183458,1746606639337,-450.0,0.00019523,2]
[360183459,1746606639347,-450.0,0.00019523,2]
[360183460,1746606639356,-450.0,0.00019523,2]
[360183461,1746606639365,-450.0,0.00019523,2]
[360183462,1746606639374,-450.0,0.00019523,2]
[360183463,1746606639383,-550.33,0.00019523,2]
[360183464,1746606639392,-450.0,0.00019523,2]
[360183465,1746606639402,-458.46,0.00019523,2]
[360183466,1746606639411,-530.0,0.00019523,2]
[360183467,1746606639420,-450.0,0.00019523,2]
[360183468,1746606639432,-450.0,0.00019523,2]
[360183469,1746606639441,-450.0,0.00019523,2]
[360183470,1746606639450,-1687.86,0.00019523,2]
[360183471,1746606639459,-486.99,0.00019523,2]
[360183472,1746606639468,-1566.18,0.00019523,2]
[360183473,1746606639477,-450.0,0.00019523,2]
[360183474,1746606639487,-155.39610609,0.00019523,2]
[360183475,1746606639496,-450.0,0.00019523,2]
[360183476,1746606639506,-1359.2,0.00019523,2]
[360183477,1746606639515,-452.33702919,0.00019523,2]
[360183478,1746606639524,-450.0,0.00019523,2]
[360183479,1746606639533,-1172.9,0.00019523,2]
[360183480,1746606639543,-450.0,0.00019523,2]
[360183481,1746606639552,-450.0,0.00019523,2]
[360183482,1746606639562,-450.0,0.00019523,2]
[360183483,1746606639571,-450.0,0.00019523,2]
[360183484,1746606639581,-450.0,0.00019523,2]
[360183485,1746606639591,-450.0,0.00019523,2]
[360183486,1746606639600,-689.34,0.00019523,2]
[360183487,1746606639610,-450.0,0.00019523,2]
[360183488,1746606639619,-520.58077902,0.00019523,2]
[360183489,1746606639628,-450.0,0.00019523,2]
[360183490,1746606639638,-516.84450685,0.00019523,2]
[360183491,1746606639647,-450.0,0.00019523,2]
[360183492,1746606639656,-450.0,0.00019523,2]
[360183493,1746606639665,-1050.07,0.00019523,2]
[360183494,1746606639675,-508.14496758,0.00019523,2]
[360183495,1746606639685,-450.0,0.00019523,2]
[360183496,1746606639695,-450.0,0.00019523,2]
[360183497,1746606639705,-450.0,0.00019523,2]
[360183498,1746606639714,-218.67166432,0.00019523,2]
[360183499,1746606639724,-162.05353208,0.00019523,2]
[360183500,1746606639733,-519.48012146,0.00019523,2]
[360183501,1746606639743,-450.0,0.00019523,2]
[360183502,1746606639752,-450.0,0.00019523,2]
[360183503,1746606639761,-450.0,0.00019523,2]
[360183504,1746606639770,-513.67784503,0.00019523,2]
[360183505,1746606639779,-450.0,0.00019523,2]
[360183506,1746606639789,-450.0,0.00019524,2]
[360183507,1746606639797,-467.13957475,0.00019524,2]
[360183508,1746606639807,-483.18866585,0.00019524,2]
[360183509,1746606639816,-462.83160153,0.00019524,2]
[360183510,1746606639825,-476.71345104,0.00019524,2]
[360183511,1746606639834,-482.78686089,0.00019524,2]
[360183512,1746606639844,-293.83143212,0.00019524,2]
[360183513,1746606639853,-479.07182672,0.00019524,2]
[360183514,1746606639863,-488.6892023,0.00019524,2]
[360183515,1746606639872,-477.4936952,0.00019524,2]
[360183516,1746606639881,-469.97145307,0.00019524,2]
[360183517,1746606639894,-450.0,0.00019524,2]
[360183519,1746606639904,-450.0,0.00019524,2]
[360183520,1746606640116,-455.97383642,0.00019524,2]
[360183521,1746606640125,-526.79392991,0.00019524,2]
[360183522,1746606640135,-450.0,0.00019524,2]
[360183523,1746606640144,-450.0,0.00019524,2]
[360183524,1746606640153,-469.6448385,0.00019524,2]
[360183525,1746606640162,-479.18377332,0.00019524,2]
[360183526,1746606640172,-471.47388172,0.00019524,2]
[360183527,1746606640182,-450.0,0.00019524,2]
[360183528,1746606640191,-450.0,0.00019524,2]
[360183529,1746606640200,-459.82095358,0.00019524,2]
[360183530,1746606640210,-474.90975149,0.00019524,2]
[360183531,1746606640220,-450.0,0.00019524,2]
[360183532,1746606640232,-463.19437655,0.00019524,2]
[360183533,1746606640242,-250.0,0.00019524,2]
[360183534,1746606640253,-464.48360676,0.00019524,2]
[360183535,1746606640262,-465.47238468,0.00019524,2]
[360183536,1746606640271,-461.2713526,0.00019524,2]
[360183537,1746606640280,-450.0,0.00019524,2]
[360183538,1746606640289,-450.0,0.00019524,2]
[360183539,1746606640298,-450.0,0.00019524,2]
[360183540,1746606640307,-462.71499435,0.00019524,2]
[360183541,1746606640316,-450.0,0.00019524,2]
[360183542,1746606640325,-454.99327804,0.00019524,2]
[360183543,1746606640334,-450.0,0.00019524,2]
[360183544,1746606640343,-469.64309887,0.00019524,2]
[360183545,1746606640352,-465.15064285,0.00019524,2]
[360183546,1746606640361,-474.90712943,0.00019524,2]
[360183547,1746606640370,-450.0,0.00019524,2]
[360183548,1746606640379,-488.85186142,0.00019524,2]
[360183549,1746606640389,-468.14734063,0.00019524,2]
[360183550,1746606640397,-450.0,0.00019524,2]
[360183551,1746606640407,-455.51524152,0.00019524,2]
[360183552,1746606640418,-466.08728992,0.00019524,2]
[360183553,1746606640430,-450.0,0.00019524,2]
[360183554,1746606640440,-490.0,0.00019524,2]
[360183555,1746606640449,-450.0,0.00019524,2]
[360183556,1746606640460,-450.0,0.00019524,2]
[360183557,1746606640469,-450.0,0.00019524,2]
[360183558,1746606640479,-450.0,0.00019524,2]
[360183559,1746606640489,-511.28999462,0.00019524,2]
[360183560,1746606640498,-391.98047364,0.00019524,2]
[360183561,1746606640507,-200.0,0.00019524,2]
[360183562,1746606640516,-450.0,0.00019524,2]
[360183563,1746606640526,-450.0,0.00019524,2]
[360183564,1746606640535,-450.0,0.00019524,2]
[360183565,1746606640545,-450.0,0.00019524,2]
[360183566,1746606640554,-450.0,0.00019524,2]
[360183567,1746606640563,-450.0,0.00019524,2]
[360183568,1746606640574,-450.0,0.00019524,2]
[360183569,1746606640583,-450.0,0.00019524,2]
[360183570,1746606640592,-450.0,0.00019524,2]
[360183571,1746606640601,-534.65634387,0.00019524,2]
[360183572,1746606640610,-450.0,0.00019524,2]
[360183573,1746606640619,-500.0,0.00019524,2]
[360183574,1746606640628,-450.0,0.00019524,2]
[360183575,1746606640638,-450.0,0.00019524,2]
[360183576,1746606640647,-450.0,0.00019524,2]
[360183577,1746606640657,-450.0,0.00019524,2]
[360183578,1746606640666,-450.0,0.00019524,2]
[360183579,1746606640675,-450.0,0.00019524,2]
[360183580,1746606640684,-450.0,0.00019524,2]
[360183581,1746606640694,-500.0,0.00019524,2]
[360183582,1746606640703,-450.0,0.00019524,2]
[360183583,1746606640713,-450.0,0.00019524,2]
[360183584,1746606640722,-450.0,0.00019524,2]
[360183585,1746606640732,-471.92229369,0.00019524,2]
[360183586,1746606640741,-450.0,0.00019524,2]
[360183587,1746606640750,-453.46580332,0.00019524,2]
[360183588,1746606640760,-616.99,0.00019524,2]
[360183589,1746606640769,-616.99,0.00019524,2]
[360183590,1746606640778,-452.18730939,0.00019524,2]
[360183591,1746606640787,-450.0,0.00019524,2]
[360183592,1746606640796,-250.93,0.00019524,2]
[360183593,1746606640805,-460.00803889,0.00019524,2]
[360183594,1746606640814,-414.13707132,0.00019524,2]
[360183595,1746606640823,-450.0,0.00019524,2]
[360183597,1746606640832,-450.0,0.00019524,2]
[360183599,1746606640841,-428.55061222,0.00019524,2]
[360183600,1746606640851,-450.0,0.00019524,2]
[360183601,1746606640860,-470.0,0.00019524,2]
[360183602,1746606640869,-450.0,0.00019524,2]
[360183603,1746606640878,-450.0,0.00019524,2]
[360183604,1746606640890,-450.0,0.00019524,2]
[360183605,1746606640899,-450.0,0.00019524,2]
[360183606,1746606640909,-574.31373601,0.00019524,2]
[360183607,1746606640918,-547.76664251,0.00019524,2]
[360183608,1746606640927,-450.0,0.00019524,2]
[360183609,1746606640937,-450.0,0.00019524,2]
[360183610,1746606640946,-450.0,0.00019524,2]
[360183611,1746606640956,-450.0,0.00019524,2]
[360183612,1746606640966,-500.0,0.00019524,2]
[360183613,1746606640976,-450.0,0.00019524,2]
[360183614,1746606640985,-157.13,0.00019524,2]
[360183615,1746606640994,-532.55929301,0.00019524,2]
[360183616,1746606641003,-202.45129678,0.00019524,2]
[360183617,1746606641012,-450.0,0.00019524,2]
[360183618,1746606641021,-530.32,0.00019524,2]
[360183619,1746606641030,-450.0,0.00019524,2]
[360183620,1746606641039,-450.0,0.00019524,2]
[360183621,1746606641047,-450.0,0.00019524,2]
[360183622,1746606641057,-450.0,0.00019524,2]
[360183623,1746606641066,-450.0,0.00019524,2]
[360183624,1746606641075,-450.66865977,0.00019524,2]
[360183625,1746606641084,-450.0,0.00019524,2]
[360183626,1746606641093,-465.51237521,0.00019524,2]